[Event "Fagernes GM Open Autumn 2024"]
[Site "Fagernes"]
[Date "2024.10.07"]
[Round "2.16"]
[White "Hillarp Persson, Tiger"]
[Black "Southcott-Moyers, Indy"]
[Result "1-0"]
[ECO "A07"]
[WhiteElo "2455"]
[BlackElo "2143"]
[Annotator "TA"]
[PlyCount "113"]
[EventDate "2024.10.03"]
[EventType "swiss"]
[EventCountry "NOR"]
[SourceTitle "playchess.com"]
[Source "ChessBase"]
[SourceQuality "1"]
[TimeControl "40/6000:2400+30"]

{[%evp 13,112,15,32,22,26,0,1,12,13,0,0,-10,11,3,18,19,11,4,7,0,0,0,20,8,20,16,17,27,22,22,29,27,38,32,34,35,25,33,35,31,20,7,49,45,91,34,117,118,118,121,266,236,223,224,343,329,304,293,472,542,1521,1497,1862,1844,2428,1268,2261,2110,2299,2019,2089,1985,5191,5183,2538,1823,6027,5081,5218,5069,5385,4060,3429,2539,29972,12796,4380,3507,8131,5413,29972,29971,5200,5200,29974,29975,29981,29982,29982,29983,29981]} 1. Nf3 {[%emt 0:03:16]} d5 {[%emt 0:00:00]} 2. g3 {[%emt 0:00:00]} b6 {[%emt 0:00:00]} 3. c4 {[%emt 0:00:36]} dxc4 {[%emt 0:05:37]} 4. Na3 {[%emt 0:07:56]} Bb7 {[%emt 0:02:41]} 5. Nxc4 {[%emt 0:01:03]} Nf6 {[%emt 0:01:59]} 6. Bg2 {[%emt 0:00:00] A07: Réti Opening: New York and Capablanca Systems.} e6 {[%emt 0:02:33]} 7. O-O {[%emt 0:14:42]} Nbd7 {[%emt 0:12:51]} 8. d4 {[%emt 0:03:17]} Be7 {[%emt 0:04:44]} 9. Bg5 {[%emt 0:00:00]} O-O {[%emt 0:02:12]} 10. Rc1 {[%emt 0:00:08]} c5 {[%emt 0:08:26]} 11. Nfe5 {[%emt 0:02:38]} Bxg2 {[%emt 0:06:00]} 12. Kxg2 {[%emt 0:00:22]} Nxe5 {[%emt 0:03:53]} (12... Qc7 {is more complex.} 13. e3 h6 14. Bxf6 Bxf6 15. Nxd7 Qxd7 16. dxc5 Qc6+) 13. dxe5 {[%emt 0:00:00]} Nd5 {[%emt 0:02:10]} 14. Bxe7 {[%emt 0:00:02]} Nxe7 $146 {[%emt 0:00:45]} ({Predecessor:} 14... Qxe7 15. Qb3 Nb4 16. Rfd1 Rad8 17. Rd6 Rxd6 18. exd6 Qd7 {½-½ Dubov,D (2712)-Abdusattorov,N (2676) Wch Rapid Almaty 2022 (9)}) 15. Qxd8 {[%emt 0:21:47]} Rfxd8 {[%emt 0:00:32]} 16. Rfd1 {[%emt 0:01:31]} Kf8 {[%emt 0:01:42]} 17. f4 {[%emt 0:03:49]} h5 {[%emt 0:09:23]} 18. Kf2 {[%emt 0:18:00]} Nf5 {[%emt 0:07:28]} 19. e4 {[%emt 0:01:12]} Rxd1 {[%emt 0:02:06]} 20. Rxd1 {[%emt 0:00:00]} Nd4 {[%emt 0:00:00]} 21. b4 {[%emt 0:01:22]} Rb8 {[%emt 0:01:39]} 22. Rd2 {[%emt 0:02:07]} Ke7 {[%emt 0:01:50]} 23. Ke3 {[%emt 0:00:13]} Nc6 {[%emt 0:04:03]} 24. bxc5 {[%emt 0:00:00]} bxc5 {[%emt 0:00:00]} 25. Rd6 {[%emt 0:00:06]} Rc8 {[%emt 0:01:21]} 26. a3 {[%emt 0:04:42]} g5 {[%emt 0:01:29]} 27. Rd2 {[%emt 0:01:52]} (27. fxg5 Nxe5 28. Nxe5 Kxd6 29. Nxf7+ Ke7 $19) 27... gxf4+ {[%emt 0:00:12]} 28. gxf4 {[%emt 0:00:00]} Rd8 {[%emt 0:04:01] [#]} (28... Rg8 $14 {feels stronger.}) 29. Rb2 {[%emt 0:01:42]} (29. Rxd8 $1 $16 Nxd8 30. Na5) 29... Rb8 {[%emt 0:00:10]} (29... Rd4 $1 $14 30. Rc2 Rd1) 30. Rxb8 $16 {[%emt 0:01:44]} Nxb8 {[%emt 0:00:00]} 31. Na5 {[%emt 0:00:28]} a6 {[%emt 0:05:32]} (31... f6 $16) 32. Nb7 {[%emt 0:00:47]} Nd7 {[%emt 0:03:25]} 33. Kd3 {[%emt 0:00:00]} f6 {[%emt 0:00:06]} (33... h4 $142 34. h3 (34. Kc4 f6 $14) 34... f6) 34. exf6+ $18 {[%emt 0:00:00]} Nxf6 {[%emt 0:00:09]} 35. Nxc5 {[%emt 0:00:00]} Ng4 $2 {[%emt 0:00:00]} (35... e5 36. Nxa6 (36. fxe5 Ng4 $18) 36... exf4) 36. h4 $18 {[%emt 0:00:00]} (36. Nxa6 Nxh2 37. e5 Nf1 $18) 36... e5 {[%emt 0:00:00]} 37. f5 {[%emt 0:00:00]} (37. Nxa6 exf4 38. Ke2 Ne5 $16) 37... a5 {[%emt 0:00:12]} 38. a4 {[%emt 0:02:00]} Nf2+ {[%emt 0:00:10]} 39. Ke2 {[%emt 0:00:00]} Ng4 {[%emt 0:00:00]} 40. Nb7 {[%emt 0:00:00]} Nf6 {[%emt 0:00:00]} 41. Kd3 {[%emt 0:42:38]} (41. Nxa5 Nxe4 42. Nc6+ Kd6 $11) 41... Nd7 {[%emt 0:08:06]} 42. Kc4 {[%emt 0:00:00]} (42. Nxa5 Nc5+ 43. Kc4 Nxa4 $16) 42... Nf6 {[%emt 0:00:06]} 43. Nc5 {[%emt 0:00:00]} Kd6 {[%emt 0:01:24]} 44. Kb5 {[%emt 0:00:00]} Ng4 {[%emt 0:01:03]} 45. Nb3 {[%emt 0:00:00]} Nf6 {[%emt 0:02:36]} 46. Nd2 {[%emt 0:00:00]} Nd7 {[%emt 0:00:08]} 47. Nc4+ {[%emt 0:00:00]} Kc7 {[%emt 0:00:10]} 48. Kxa5 {[%emt 0:00:00]} Nc5 {[%emt 0:00:30]} 49. Nd2 {[%emt 0:00:00]} (49. f6 $142 Ne6 50. f7 (50. Nxe5 Kd6 $18) 50... Nf8 51. Kb5 (51. Nxe5 Kd6 $18) 51... Ne6 52. Nxe5 Nf8 53. Nf3 Kd8 54. Ng5) 49... Kc6 {[%emt 0:00:22]} 50. Kb4 {[%emt 0:00:00]} Nd3+ {[%emt 0:00:13]} 51. Kc4 {[%emt 0:00:00]} Nb2+ {[%emt 0:00:06] [#]} 52. Kb3 $1 {[%emt 0:00:00]} Nd3 {[%emt 0:00:10]} 53. a5 {[%emt 0:00:00]} Kb5 {[%emt 0:00:19]} 54. f6 {[%emt 0:00:00]} Kxa5 {[%emt 0:01:46]} 55. f7 {[%emt 0:00:00]} Nc5+ {[%emt 0:00:03]} 56. Kc4 {[%emt 0:00:00]} Nd7 {[%emt 0:00:03]} 57. Kd5 {[%emt 0:00:00]} 1-0

[Event "Fagernes GM Open Autumn 2024"]
[Site "Fagernes"]
[Date "2024.10.07"]
[Round "2.17"]
[White "Sorensen, Hampus"]
[Black "Aamodt, Peder Marcus"]
[Result "1-0"]
[ECO "B53"]
[WhiteElo "2423"]
[BlackElo "2126"]
[Annotator "TA"]
[PlyCount "75"]
[EventDate "2024.10.03"]
[EventType "swiss"]
[EventCountry "NOR"]
[SourceTitle "playchess.com"]
[Source "ChessBase"]
[SourceQuality "1"]
[TimeControl "40/6000:2400+30"]

{[%evp 9,75,14,15,10,14,2,10,6,0,5,-1,0,0,0,2,13,14,0,13,0,47,50,98,49,75,82,75,84,59,48,63,62,52,47,59,51,62,50,57,43,64,58,66,61,81,77,228,227,232,216,217,211,477,479,529,529,520,416,550,544,753,443,847,854,1048,1043,995,971]} 1. e4 {[%emt 0:00:00]} c5 {[%emt 0:01:05]} 2. Nf3 {[%emt 0:00:00]} d6 {[%emt 0:00:00]} 3. Nc3 {[%emt 0:00:00]} Nf6 {[%emt 0:04:55]} 4. d4 {[%emt 0:00:00]} cxd4 {[%emt 0:00:00]} 5. Qxd4 {[%emt 0:00:00]} Nc6 {[%emt 0:00:00]} 6. Qd3 {[%emt 0:00:00]} g6 {[%emt 0:05:38]} 7. Nd5 {[%emt 0:00:00]} Bg7 {[%emt 0:03:20]} 8. c3 {[%emt 0:00:00] The position is equal.} O-O {[%emt 0:00:56]} 9. Bg5 {[%emt 0:00:00]} Nxd5 {[%emt 0:05:29]} 10. exd5 {[%emt 0:00:00]} Ne5 {[%emt 0:00:00]} 11. Nxe5 {[%emt 0:00:00]} dxe5 {[%emt 0:01:46]} 12. Rd1 {[%emt 0:00:00]} Qd6 {[%emt 0:03:02]} 13. Be2 {[%emt 0:09:18][%cal Bf1e2,Be2f3,Bf3d5][%mdl 32]} e6 {[%emt 0:06:33]} 14. Bf3 {[%emt 0:28:26]} h6 {[%emt 0:13:16]} (14... f5 $11 {is more appropriate.} 15. Qc4 e4) 15. Be3 $14 {[%emt 0:02:21]} Re8 {[%emt 0:31:44]} (15... exd5 $14 16. Bxd5 (16. Qxd5 Qa6 $11) 16... Be6) 16. O-O {[%emt 0:10:24] White is more active.} ({White should try} 16. Qb5 $16 Qd7 17. Qc4) 16... exd5 {[%emt 0:01:28]} 17. Bxd5 {[%emt 0:00:21]} Be6 {[%emt 0:00:00]} 18. Qb5 {[%emt 0:00:00]} ({Reject} 18. Bxb7 Qxd3 19. Rxd3 Rab8 $11) 18... a6 {[%emt 0:02:26]} 19. Qb3 {[%emt 0:01:05]} Bxd5 {[%emt 0:02:23]} 20. Rxd5 {[%emt 0:00:00]} Qe6 {[%emt 0:00:09]} 21. Rfd1 {[%emt 0:11:57][%cal Oe3b6]} b5 {[%emt 0:00:51]} 22. a4 {[%emt 0:00:02]} Rab8 {[%emt 0:00:09]} 23. a5 {[%emt 0:00:51]} Rbc8 {[%emt 0:01:31]} 24. Qc2 {[%emt 0:02:10]} Rc6 {[%emt 0:03:48] Inhibits Rd6.} 25. Qd2 {[%emt 0:07:13]} h5 {[%emt 0:00:00]} 26. h3 {[%emt 0:00:00]} Kh7 {[%emt 0:05:32]} 27. Rd7 {[%emt 0:04:25]} Re7 $2 {[%emt 0:02:02] [#] Loses the game.} (27... Bf8 $16) 28. Rxe7 $1 $18 {[%emt 0:02:02]} Qxe7 {[%emt 0:00:00]} 29. Qd7 {[%emt 0:00:00]} Qxd7 {[%emt 0:01:20]} 30. Rxd7 {[%emt 0:00:00][%mdl 4096] Endgame. KRB-KRB} Rc4 $2 {[%emt 0:00:00]} (30... Rf6 {was worth a try.} 31. g4 Kg8) 31. Rxf7 {[%emt 0:00:00]} b4 {[%emt 0:00:00]} 32. cxb4 {[%emt 0:04:22]} Rxb4 {[%emt 0:00:00]} 33. Bc5 {[%emt 0:00:00]} Rb8 {[%emt 0:00:06]} 34. Ra7 {[%emt 0:00:00] White is clearly winning.} Kg8 {[%emt 0:00:00]} 35. b4 {[%emt 0:00:00]} e4 {[%emt 0:00:00]} (35... Bf8 $142 36. Rxa6 Bxc5) 36. Rxa6 {[%emt 0:00:00]} Bc3 {[%emt 0:00:00]} 37. Rxg6+ {[%emt 0:00:00]} Kf7 {[%emt 0:00:00]} 38. Rb6 {[%emt 0:00:00] Weighted Error Value: White=0.20 (precise) /Black=0.32.  Mistake:       	White=1     	Black=5      Inaccurate:     	White=1     	Black=3      OK:         	White=10    	Black=10     Best:        	White=1     	---        Strong:       	White=1     	---} 1-0

[Event "Fagernes GM Open Autumn 2024"]
[Site "Fagernes"]
[Date "2024.10.07"]
[Round "2.18"]
[White "Hansen, Torbjorn Ringdal"]
[Black "Harish, Neeraj"]
[Result "0-1"]
[ECO "A13"]
[WhiteElo "2415"]
[BlackElo "2024"]
[Annotator "TA"]
[PlyCount "84"]
[EventDate "2024.10.03"]
[EventType "swiss"]
[EventCountry "NOR"]
[SourceTitle "playchess.com"]
[Source "ChessBase"]
[SourceQuality "1"]
[TimeControl "40/6000:2400+30"]

{[%evp 9,84,15,3,10,19,28,17,30,14,13,7,8,16,14,31,35,40,33,20,22,32,30,26,15,29,33,18,0,0,-11,0,-9,1,0,0,0,20,0,0,0,0,0,0,0,0,0,139,70,143,22,23,23,127,-107,0,-10,-31,-79,116,131,129,-270,-266,-237,-301,-291,0,-8,-9,-725,-714,-1048,-1065,-2675,-2411,-2435,-2144]} 1. c4 {[%emt 0:00:00]} e6 {[%emt 0:00:00]} 2. g3 {[%emt 0:00:00]} d5 {[%emt 0:00:00]} 3. Bg2 {[%emt 0:00:00]} d4 {[%emt 0:00:00]} 4. Nf3 {[%emt 0:00:31]} Nc6 {[%emt 0:00:00]} 5. O-O {[%emt 0:01:24]} Bc5 {[%emt 0:00:00]} 6. d3 {[%emt 0:00:00]} Nf6 {[%emt 0:00:31]} 7. Nbd2 {[%emt 0:02:51]} a5 {[%emt 0:04:59][%cal Ba7a5,Ba5a4][%mdl 32]} 8. Nb3 {[%emt 0:01:10] Dodges e5. The position is equal.} Be7 {[%emt 0:00:00]} 9. e3 {[%emt 0:01:36]} dxe3 {[%emt 0:00:00]} 10. Bxe3 {[%emt 0:00:43]} Ng4 {[%emt 0:06:20]} 11. Bc5 {[%emt 0:06:31]} a4 {[%emt 0:00:00]} 12. Bxe7 {[%emt 0:00:18]} Qxe7 {[%emt 0:00:00]} 13. Nbd4 {[%emt 0:01:11]} Nxd4 {[%emt 0:02:53]} 14. Nxd4 {[%emt 0:00:00]} e5 {[%emt 0:00:29]} 15. Nf3 {[%emt 0:08:46]} O-O {[%emt 0:02:51]} 16. h3 {[%emt 0:01:44]} Nh6 {[%emt 0:00:00][%cal Bg4h6,Bh6f7,Bf7e5,Be5d3][%mdl 32]} 17. Re1 {[%emt 0:00:58]} f6 {[%emt 0:00:00]} 18. d4 {[%emt 0:03:48]} e4 {[%emt 0:00:00]} 19. d5 {[%emt 0:11:00][%cal Od5d6]} f5 {[%emt 0:05:50]} 20. Qd4 {[%emt 0:01:54]} c5 {[%emt 0:09:51]} 21. Qc3 {[%emt 0:12:14]} Nf7 {[%emt 0:03:13]} 22. Nd2 {[%emt 0:00:00]} Qg5 {[%emt 0:05:57]} 23. h4 {[%emt 0:01:04]} Qg6 {[%emt 0:00:33]} 24. b4 {[%emt 0:05:33]} cxb4 {[%emt 0:01:32]} 25. Qxb4 {[%emt 0:03:29]} Ne5 {[%emt 0:09:29]} 26. Qc3 {[%emt 0:01:47]} Nd3 {[%emt 0:00:14]} 27. Re3 {[%emt 0:00:27][%cal Rd2e4]} Qf7 {[%emt 0:00:51]} (27... Nc5 $11 {keeps the balance.}) 28. Rb1 {[%emt 0:03:45]} (28. f3 $16 Qc7 29. fxe4) 28... Ra6 {[%emt 0:02:39]} (28... Qc7 $14) 29. f4 {[%emt 0:01:27]} ({Only move:} 29. f3 $1 $16 {[%cal Rf3e4]}) 29... Qc7 {[%emt 0:08:07]} 30. Qd4 {[%emt 0:05:27]} Rg6 {[%emt 0:01:16]} (30... Nc5 $11) 31. Rf1 $2 {[%emt 0:07:05] [#]} (31. h5 $16 {stays on course.} Rh6 32. Rxd3 exd3 33. c5) 31... Qb6 {[%emt 0:13:08] Black is more active.} (31... Nb4 $1 $17 {[%cal Rb4c2] And now ...Nc2! would win.} 32. Rc3 Nxa2) 32. Rxd3 {[%emt 0:04:09]} exd3 {[%emt 0:00:00]} 33. c5 {[%emt 0:00:00] [#]} Qa5 {[%emt 0:01:36]} (33... Qd8 $1 $17 {keeps the pressure on.} 34. Nf3 Rxg3 35. Qxd3 Bd7 (35... Qxh4 36. Qd4 $15)) 34. Nc4 $16 {[%emt 0:00:00]} Qb4 {[%emt 0:00:00] ...b5 is the strong threat.} 35. Kh2 $2 {[%emt 0:01:14][%mdl 8192]} (35. a3 $16 {is necessary to keep the advantage.} Qb3 36. Rf3) 35... b5 $19 {[%emt 0:02:56]} 36. cxb6 {[%emt 0:00:25][%cal Od5d6] Hoping for d6!} Ba6 {[%emt 0:00:00]} 37. Rc1 {[%emt 0:03:18][%cal Oc1c3]} Rc8 $2 {[%emt 0:00:42]} (37... d2 $19 38. Qxd2 Qxd2 39. Nxd2 Rxb6) 38. d6 {[%emt 0:00:22]} Rxd6 {[%emt 0:00:00]} (38... Bxc4 $2 39. b7 Rd8 40. Rxc4 Qxd6 41. Qd5+ (41. Bd5+ Kf8 $18) 41... Kf8 42. Rc8 (42. Qxf5+ Rf6 $18) 42... Qxd5 43. Bxd5 $18) (38... Rxc4 39. Qd5+ (39. Qxd3 $2 Rxd6 40. Bd5+ Kh8 $19) (39. Rxc4 Qxd6 40. b7 Bxb7 $18) 39... Kf8 40. d7 (40. Qxf5+ Rf6 $11) 40... Qd6 41. d8=Q+ (41. d8=R+ Ke7 42. Rxd6 Rxd6 43. Qe5+ Re6 44. Qxg7+ Kd8 45. Rxc4 Bxc4 46. Qc7+ Ke8) 41... Qxd8 42. Qxd8+ Kf7 43. Bd5+ (43. Qxd3 Rxc1 44. Qxa6 Rxb6 $18) 43... Re6 44. Qd7+ (44. Bxc4 Bxc4 45. b7 h6 46. b8=Q Kg6 47. Rxc4 Re2+ 48. Kh3 Rh2+ 49. Kxh2 Kh5) 44... Kf8 45. Qxe6 (45. Bxc4 Re2+ 46. Kh3 Bxc4 47. Rxc4 Re8 48. Rc7 Re7 49. Qxe7+ Kg8 50. Qxg7#) 45... Rc2+ 46. Rxc2 dxc2 47. Qf7#) 39. Bd5+ $2 {[%emt 0:00:54][%mdl 8192]} (39. Qe5 $11 Rf6 (39... Bxc4 $2 40. b7 $18) 40. a3) 39... Kh8 {[%emt 0:00:02] Black is clearly winning.} 40. a3 {[%emt 0:00:57] [#]} Rxc4 $1 {[%emt 0:02:41][%mdl 512]} 41. Qe3 {[%emt 0:15:09] [#]} (41. Qe5 Qd2+) 41... Re4 $1 {[%emt 0:05:41]} 42. b7 {[%emt 0:06:45]} (42. Qxd3 Qb2+) 42... Bxb7 {[%emt 0:00:40] Weighted Error Value: White=0.78/Black=0.32.  Loses game:     	White=2     	---        Missed win:     	---       	Black=1      Mistake:       	White=3     	Black=5      Inaccurate:     	White=1     	---        OK:         	White=14    	Black=15     Best:        	White=4     	Black=3} ({Inferior is} 42... Rxe3 43. Rc8+ (43. axb4 $2 {loses.} Rd8 $19) (43. axb4 $2 Rd8 $19)) 0-1

[Event "Fagernes GM Open Autumn 2024"]
[Site "Fagernes"]
[Date "2024.10.07"]
[Round "2.19"]
[White "Myagmarsuren, Evsuld"]
[Black "Sherman, Raem"]
[Result "1-0"]
[ECO "B23"]
[WhiteElo "2171"]
[BlackElo "2390"]
[Annotator "TA"]
[PlyCount "83"]
[EventDate "2024.10.03"]
[EventType "swiss"]
[EventCountry "NOR"]
[SourceTitle "playchess.com"]
[Source "ChessBase"]
[SourceQuality "1"]
[TimeControl "40/6000:2400+30"]

{[%evp 9,83,15,18,22,24,22,33,45,37,27,51,32,35,30,36,-7,0,-13,0,-7,0,-42,11,9,10,0,0,9,6,0,21,23,25,27,42,51,217,212,202,208,382,379,380,385,372,341,367,378,366,369,376,376,391,394,411,395,396,397,506,497,502,455,538,541,570,585,599,613,29989,291,29990,29991,29991,29992,29997,29998]} 1. e4 {[%emt 0:00:00]} c5 {[%emt 0:00:00][%cal Bc7c5,Bc5d4][%mdl 32]} 2. Nc3 {[%emt 0:00:00]} Nc6 {[%emt 0:00:27]} 3. Bb5 {[%emt 0:00:00]} Nd4 {[%emt 0:03:46]} 4. Nf3 {[%emt 0:00:00]} g6 {[%emt 0:01:33]} 5. Nxd4 {[%emt 0:04:26]} cxd4 {[%emt 0:00:00]} 6. Ne2 {[%emt 0:00:00]} Bg7 {[%emt 0:00:00]} 7. c3 {[%emt 0:00:28]} e5 {[%emt 0:09:57]} 8. O-O {[%emt 0:06:54] White is slightly better.} Ne7 {[%emt 0:00:30]} 9. d3 {[%emt 0:09:35]} dxc3 {[%emt 0:08:28]} 10. bxc3 {[%emt 0:00:09]} O-O {[%emt 0:03:02]} 11. Ba3 {[%emt 0:06:08]} d6 {[%emt 0:06:51]} 12. Qb1 {[%emt 0:09:01]} a6 {[%emt 0:06:57]} 13. Ba4 {[%emt 0:00:47]} Nc6 {[%emt 0:01:43]} 14. c4 {[%emt 0:11:04]} Qc7 {[%emt 0:05:40]} 15. c5 {[%emt 0:05:56]} dxc5 {[%emt 0:01:04]} (15... Qa5 $1 $15 16. Qc2 Bg4 17. Bxc6 (17. cxd6 $2 {loses.} Bxe2 18. Qxe2 Qxa4 $19) 17... Bxe2 (17... Qxa3 18. Bxb7 Qxc5 19. Qxc5 $16) (17... bxc6 18. Qc3 $11) 18. Qxe2 bxc6) 16. Bxc5 $11 {[%emt 0:01:30]} Re8 {[%emt 0:07:02]} 17. Qb6 {[%emt 0:01:46]} Qxb6 {[%emt 0:08:56]} 18. Bxb6 {[%emt 0:00:00]} Re6 {[%emt 0:00:53]} 19. Rab1 {[%emt 0:02:51]} Bf8 {[%emt 0:06:51]} 20. Nc3 {[%emt 0:07:46][%cal Be2c3,Bc3d5,Bd5b6,Bb6c8][%mdl 32]} Nb4 {[%emt 0:01:02]} 21. Ba5 {[%emt 0:00:00]} (21. Nd5 Nxd5 22. exd5 Rd6 $16) 21... Nxd3 {[%emt 0:02:22]} 22. Nd5 $36 {[%emt 0:00:00][%mdl 2048] White has the initiative.} Bd6 $2 {[%emt 0:00:48] This costs Black the game.} ({Black should play} 22... Nc5 $14 23. Nc7 Rb8 24. Nxe6 Bxe6) 23. Nb6 $18 {[%emt 0:00:00]} Rb8 {[%emt 0:00:36] [#]} 24. Nxc8 $1 {[%emt 0:00:00]} Bc5 {[%emt 0:02:16]} (24... Rxc8 25. Bd7 (25. Rxb7 Nc5 $15) 25... Rc5) 25. Nb6 {[%emt 0:07:45]} Bd4 {[%emt 0:01:18]} 26. Bb3 {[%emt 0:06:26]} Rc6 {[%emt 0:01:32]} 27. Nd5 {[%emt 0:00:06]} Kg7 {[%emt 0:03:41]} 28. Nb4 {[%emt 0:03:29]} Nxb4 {[%emt 0:02:30]} 29. Bxb4 {[%emt 0:00:00]} Rbc8 {[%emt 0:00:05]} 30. Bd2 {[%emt 0:00:29]} b5 {[%emt 0:00:32]} 31. Rbc1 {[%emt 0:00:20]} Bb2 {[%emt 0:01:36]} 32. Rxc6 {[%emt 0:00:07]} Rxc6 {[%emt 0:00:03]} 33. g3 {[%emt 0:02:31]} f5 {[%emt 0:00:00]} 34. exf5 {[%emt 0:00:34]} gxf5 {[%emt 0:00:00]} 35. Rd1 {[%emt 0:00:00]} Kf6 {[%emt 0:00:00]} 36. h4 {[%emt 0:00:00]} Kg6 {[%emt 0:00:00]} 37. Be3 {[%emt 0:00:00]} h6 {[%emt 0:00:00]} 38. Rd7 {[%emt 0:00:51][%cal Oh4h5] h5+! would kill now.} Rf6 {[%emt 0:00:00] [#]} 39. h5+ $1 {[%emt 0:01:11]} Kxh5 {[%emt 0:00:00]} 40. Rg7 {[%emt 0:00:00][%cal Rb3d1] White mates.} f4 {[%emt 0:00:00] [#]} 41. Kg2 $1 {[%emt 0:41:41]} fxe3 {[%emt 0:41:51]} (41... Rg6 42. Bf7) 42. Bd1+ {[%emt 0:00:06] Weighted Error Value: White=0.06 (flawless) /Black=0.46.  Loses game:     	---       	Black=1      Mistake:       	---       	Black=2      Inaccurate:     	White=2     	Black=1      OK:         	White=15    	Black=9      Best:        	White=2     	Black=1      Strong:       	White=1     	---        Brilliant:      	White=1     	---} 1-0

[Event "Fagernes GM Open Autumn 2024"]
[Site "Fagernes"]
[Date "2024.10.07"]
[Round "2.20"]
[White "Moksh Amit Doshi"]
[Black "Bjorkan, Olav"]
[Result "1-0"]
[ECO "D38"]
[WhiteElo "2377"]
[BlackElo "2022"]
[Annotator "RC"]
[PlyCount "145"]
[EventDate "2024.10.03"]
[EventType "swiss"]
[EventCountry "NOR"]
[SourceTitle "playchess.com"]
[Source "ChessBase"]
[SourceQuality "1"]
[TimeControl "40/6000:2400+30"]

1. d4 {[%emt 0:01:14]} Nf6 {[%emt 0:00:00]} 2. c4 {[%emt 0:00:00]} e6 {[%emt 0:00:00]} 3. Nf3 {[%emt 0:00:07]} d5 {[%emt 0:00:00]} 4. Nc3 {[%emt 0:01:12]} Bb4 {[%emt 0:00:00]} 5. Bg5 {[%emt 0:00:07]} O-O {[%emt 0:00:00]} 6. e3 {[%emt 0:00:00]} c5 {[%emt 0:02:29]} 7. cxd5 {[%emt 0:00:53]} exd5 {[%emt 0:00:00]} 8. Bd3 {[%emt 0:00:07]} Bg4 {[%emt 0:01:49]} 9. a3 {[%emt 0:03:40]} Bxc3+ {[%emt 0:01:42]} 10. bxc3 {[%emt 0:00:00]} Nbd7 {[%emt 0:00:00]} 11. O-O {[%emt 0:00:16]} Qa5 {[%emt 0:01:53]} 12. Qc2 {[%emt 0:05:10]} Bxf3 {[%emt 0:02:47]} 13. gxf3 {[%emt 0:00:00]} cxd4 {[%emt 0:03:33]} 14. cxd4 {[%emt 0:00:48]} Rac8 {[%emt 0:00:07]} 15. Qb2 {[%emt 0:01:41]} Qb6 {[%emt 0:07:52]} 16. Qxb6 {[%emt 0:00:44]} Nxb6 {[%emt 0:00:00]} 17. Bf5 {[%emt 0:06:40]} Rc6 {[%emt 0:00:27]} 18. Rfc1 {[%emt 0:00:28]} Nc4 {[%emt 0:08:34]} 19. a4 {[%emt 0:02:23]} h6 {[%emt 0:05:08]} 20. Bh4 {[%emt 0:00:20]} g6 {[%emt 0:00:57]} 21. Bh3 {[%emt 0:00:42]} Nh5 {[%emt 0:03:22]} 22. Be7 {[%emt 0:04:44]} Re8 {[%emt 0:01:25]} 23. Bb4 {[%emt 0:00:08]} f5 {[%emt 0:01:03]} 24. Bf1 {[%emt 0:00:19]} Nf6 {[%emt 0:02:46]} 25. Bc5 {[%emt 0:03:48]} b6 {[%emt 0:02:28]} 26. Rxc4 {[%emt 0:03:09]} bxc5 {[%emt 0:04:38]} 27. Rxc5 {[%emt 0:00:00]} Rxc5 {[%emt 0:00:00]} 28. dxc5 {[%emt 0:00:00]} Rc8 {[%emt 0:00:00]} 29. Rb1 {[%emt 0:02:23]} Rxc5 {[%emt 0:00:00]} 30. Rb8+ {[%emt 0:00:00]} Kf7 {[%emt 0:00:00]} 31. Rb7+ {[%emt 0:00:00]} Ke6 {[%emt 0:00:00]} 32. Rxa7 {[%emt 0:00:00]} Rc1 {[%emt 0:00:00]} 33. Ra6+ {[%emt 0:00:12]} Kf7 {[%emt 0:00:00]} 34. a5 {[%emt 0:02:43]} Ra1 {[%emt 0:02:14]} 35. Kg2 {[%emt 0:02:54]} f4 {[%emt 0:01:21]} 36. Ra7+ {[%emt 0:00:15]} Ke6 {[%emt 0:00:00]} 37. a6 {[%emt 0:00:37]} Ra2 {[%emt 0:03:30]} 38. Kg1 {[%emt 0:00:11]} Ra1 {[%emt 0:03:37]} 39. Rb7 {[%emt 0:02:54]} Ke5 {[%emt 0:06:02]} 40. a7 {[%emt 0:04:47]} Nh5 {[%emt 0:03:49]} 41. Kg2 {[%emt 0:41:43]} Ra2 {[%emt 0:41:28]} 42. Kh3 {[%emt 0:02:04]} g5 {[%emt 0:01:49]} 43. Bb5 {[%emt 0:03:10]} Nf6 {[%emt 0:02:47]} 44. Rc7 {[%emt 0:03:48]} h5 {[%emt 0:06:47]} 45. exf4+ {[%emt 0:04:04]} gxf4 {[%emt 0:04:40]} 46. Re7+ {[%emt 0:08:33]} Kd6 {[%emt 0:02:11]} 47. Rf7 {[%emt 0:00:15]} Kc5 {[%emt 0:01:29]} 48. Bd3 {[%emt 0:03:49]} Ne8 {[%emt 0:00:29]} 49. Kh4 {[%emt 0:03:49]} Nd6 {[%emt 0:02:04]} 50. Rh7 {[%emt 0:00:51]} Kd4 {[%emt 0:00:59]} 51. Bb1 {[%emt 0:04:52]} Ra1 {[%emt 0:00:20]} 52. Kxh5 {[%emt 0:00:16]} Nb5 {[%emt 0:00:31]} 53. Rd7 {[%emt 0:00:56]} Nxa7 {[%emt 0:00:40]} 54. Be4 {[%emt 0:00:31]} Ra5 {[%emt 0:00:51]} 55. Kg4 {[%emt 0:02:35]} Nc6 {[%emt 0:02:15]} 56. Kxf4 {[%emt 0:02:29]} Ne5 {[%emt 0:00:28]} 57. Rd8 {[%emt 0:00:44]} Nf7 {[%emt 0:02:10]} 58. Rf8 {[%emt 0:01:45]} Ne5 {[%emt 0:00:07]} 59. Rd8 {[%emt 0:01:10]} Nf7 {[%emt 0:00:45]} 60. Rd7 {[%emt 0:02:33]} Ne5 {[%emt 0:00:34]} 61. Rd6 {[%emt 0:00:44]} Nf7 {[%emt 0:02:59]} 62. Rf6 {[%emt 0:00:19]} Ne5 {[%emt 0:00:18]} 63. Bf5 {[%emt 0:00:14]} Ra2 {[%emt 0:00:47]} 64. Kg3 {[%emt 0:00:26]} Nd3 {[%emt 0:00:00]} 65. h4 {[%emt 0:12:27]} Nxf2 {[%emt 0:00:00]} 66. Re6 {[%emt 0:12:59]} Nd1 {[%emt 0:00:00]} 67. h5 {[%emt 0:00:00]} Ne3 {[%emt 0:00:00]} 68. Bg6 {[%emt 0:00:00]} Re2 {[%emt 0:00:00]} 69. Re8 {[%emt 0:00:00]} Re1 {[%emt 0:00:00]} 70. Kf4 {[%emt 0:00:00]} Rh1 {[%emt 0:00:08]} 71. Rxe3 {[%emt 0:00:00]} Rh4+ {[%emt 0:00:10]} 72. Kg5 {[%emt 0:00:00]} Rxh5+ {[%emt 0:00:09]} 73. Bxh5 {[%emt 0:00:00]} 1-0